Cogmind - Beta 13 X1 @@@ ROGUE MODE // 2023.09.27 @ 13:27:18 Player: DuckBoy Result: Destroyed by B-75 Beast with Magnetic Acceleration Cannon Performance ------------- Evolutions (3) 1500 Regions Visited (11) 2200 Robots Destroyed (178) 890 Value Destroyed (7012) 7012 Prototype IDs (30) 600 Alien Tech Used (0) 0 Bonus (3703) 3703 TOTAL SCORE: 15905 Bonus ------- High Alert Combat Kills 540 Follower Combat Kills 1284 Entered Garrisons 600 Used RIF Installer 1000 Aligned with FarCom 300 Friendly Fire -21 Cogmind --------- Core Integrity 0/700 Matter 218/300 Energy 279/290 System Corruption 3% Temperature Cool (29) Movement Walking (120) Location -7/Garrison Parts ------- > --- POWER (1) -------- Improved Deuterium Engine > --- PROPULSION (4) --- Light Armored Exoskeleton Biometal Leg Biometal Leg > --- UTILITY (6) ------ Large Storage Unit Advanced Visual Processing Unit Advanced Targeting Computer Microactuators Hacking Suite > --- WEAPON (2) ------- Long-range Missile Launcher Long-range Missile Launcher > --- INVENTORY (15) --- Light Ion Engine Xenon Bombardment Thruster Impulse Thruster Advanced Transmission Jammer Advanced Shield Generator Relay Coupler [NC] (19) Lightning Gun Gatling Laser Phase Gun Gauss Rifle KE Penetrator KE Penetrator Mini Assault Cannon Remote Datajack Chainsword Peak State ------------ > --- POWER ------------ Ion Engine > --- PROPULSION ------- Armored Huge Wheel > --- UTILITY ---------- Army-in-a-Box > --- WEAPON ----------- Ion Cannon Enhanced Autogun > --- INVENTORY -------- Armored Huge Wheel Hacking Suite Rocket Launcher [Rating: 71] Favorites ----------- Power Improved Ion Engine Engine Improved Ion Engine Power Core Micro Nuclear Core Propulsion Armored Huge Wheel Treads Light Treads Leg Biometal Leg Wheel Armored Huge Wheel Utility Hacking Suite Device Army-in-a-Box Storage Large Storage Unit Processor Advanced Targeting Computer Hackware Hacking Suite Protection Reflective Plating Weapon Enhanced Autogun Energy Gun Particle Gun Energy Cannon Ion Cannon Ballistic Gun Enhanced Autogun Ballistic Cannon Gauss Cannon Launcher Rocket Launcher Special Weapon Improved Remote Datajack Slashing Weapon Chainsword Special Melee Weapon Datajack Build | -11 -10 -10 -10 -9 -8 -8 -8 -7 -7 -7 -7 ------- Run | Jun Mat Min Exi Min Mat Gar Mat Fac Gar Fac Gar Slots Evolved 6 | . . . . . 4 . . 2 . . . Power . | . . . . . . . . . . . . Propulsion 2 | . . . . . . . . 2 . . . Utility 4 | . . . . . 4 . . . . . . Weapon . | . . . . . . . . . . . . Parts Attached 178 | 6 7 5 . 2 22 5 12 40 35 37 7 Power 13 | 1 1 1 . . 1 2 . 2 3 2 . Engine 10 | 1 1 1 . . 1 2 . . 2 2 . Core 3 | . . . . . . . . 2 1 . . Reactor . | . . . . . . . . . . . . Propulsion 24 | 2 3 . . 2 2 . 1 1 8 4 1 Treads 7 | . 3 . . . . . . . 4 . . Leg 9 | . . . . . . . . . 4 4 1 Wheel 8 | 2 . . . 2 2 . 1 1 . . . Hover . | . . . . . . . . . . . . Flight . | . . . . . . . . . . . . Utility 63 | 1 2 2 . . 12 3 . 16 9 16 2 Device 17 | . . 1 . . 3 . . 2 1 10 . Storage 4 | 1 . 1 . . 1 . . . 1 . . Processor 3 | . . . . . . . . 1 . 2 . Hackware 19 | . . . . . 3 2 . 6 4 3 1 Protection 20 | . 2 . . . 5 1 . 7 3 1 1 Artifact . | . . . . . . . . . . . . Weapon 78 | 2 1 2 . . 7 . 11 21 15 15 4 Energy Gun 13 | 1 . 2 . . 2 . 1 1 3 2 1 Energy Cannon 5 | . . . . . 1 . 4 . . . . Ballistic Gun 29 | 1 1 . . . 3 . 6 6 5 6 1 Ballistic Cannon 10 | . . . . . . . . 6 3 1 . Launcher 4 | . . . . . 1 . . . 1 . 2 Special Weapon 12 | . . . . . . . . 8 3 1 . Impact Weapon . | . . . . . . . . . . . . Slashing Weapon 3 | . . . . . . . . . . 3 . Piercing Weapon . | . . . . . . . . . . . . Special Melee Weapon 2 | . . . . . . . . . . 2 . Unidentified Prototypes 7 | . . . . . 4 . 1 1 . 1 . Parts Lost 29 | . . 4 . 1 . 2 . 3 15 3 1 Power 7 | . . 1 . . . 1 . 1 3 1 . Propulsion 4 | . . . . 1 . . . . 3 . . Utility 12 | . . 1 . . . 1 . 2 5 2 1 Weapon 6 | . . 2 . . . . . . 4 . . Highest Loss Streak 9 | . . 2 . 1 . 1 . 2 9 1 1 To Critical Strikes . | . . . . . . . . . . . . Average Slot Usage (%) 83 | . 90 97 100 99 47 89 89 83 86 90 89 Engine 6 | . 13 12 14 14 9 8 9 1 2 6 7 Core 1 | . . . . . . . . 5 3 . . Treads 2 | . 17 28 28 26 . . . . 6 . . Leg 4 | . . . . . . . . . 13 24 22 Wheel 8 | . 9 . . . 11 9 8 14 1 . . Device 3 | . . 7 14 14 8 . . . 2 5 8 Storage 7 | . 14 14 14 14 . 9 9 7 6 7 7 Processor 3 | . . . . . . . . 5 6 14 15 Hackware 21 | . . . . . . 34 36 26 25 13 7 Protection 4 | . 6 6 . . 2 10 9 4 . . 4 Energy Gun 2 | . 14 14 28 28 3 . . . 6 . 5 Ballistic Gun 9 | . 14 13 . . 5 18 17 3 3 9 5 Ballistic Cannon 2 | . . . . . . . . 10 . . . Naked Turns . | . . . . . . . . . . . . Heaviest Build 95 | 12 15 31 30 30 95 43 40 44 41 48 51 Greatest Support 96 | 32 40 40 40 40 32 28 28 56 96 96 86 Greatest Overweight (x) 3 | . . . . 1 3 1 1 1 2 . . Average Overweight (x) . | . . . . . 2 1 1 . . . . Largest Inventory Capacity 15 | 8 8 15 15 15 15 15 15 15 15 15 15 Average Capacity 13 | 6 8 11 15 15 5 15 15 15 14 15 15 Most Carried 15 | 3 4 8 13 15 11 11 15 15 15 15 15 Average Carried 11 | 1 3 6 9 14 4 10 13 12 13 14 15 Final Capacity 15 | 8 8 15 15 15 15 15 15 15 15 15 15 Final Carried 15 | 3 4 7 13 13 11 11 14 12 15 15 15 Class Distribution -------------------- 64% | Hacker-Mutant 25% | Mutant 7% | Scavenger-Mutant 3% | Bothacker-Mutant Dominant Class ---------------- Mutant | -10/Materials Mutant | -10/Mines Scavenger-Mutant | -10/Exiles Scavenger-Mutant | -9/Mines Mutant | -8/Materials Hacker-Mutant | -8/Garrison Hacker-Mutant | -8/Materials Hacker-Mutant | -7/Factory Bothacker-Mutant | -7/Garrison Mutant | -7/Factory Mutant | -7/Garrison Resources | -11 -10 -10 -10 -9 -8 -8 -8 -7 -7 -7 -7 ----------- Run | Jun Mat Min Exi Min Mat Gar Mat Fac Gar Fac Gar Matter Collected 5389 | 236 88 153 . 14 237 464 701 1145 869 1375 107 Remotely . | . . . . . . . . . . . . Salvage Created 6802 | . 167 485 . 37 416 729 965 915 951 1908 229 Parts 374 | . 9 20 . 9 14 51 62 50 50 103 6 Haulers Intercepted 2 | . . . . . 1 . 1 . . . . Recyclers Shooed . | . . . . . . . . . . . . Parts Field Recycled . | . . . . . . . . . . . . Retrieved Matter . | . . . . . . . . . . . . Parts Self-Destructed . | . . . . . . . . . . . . Prevented . | . . . . . . . . . . . . Kills | -11 -10 -10 -10 -9 -8 -8 -8 -7 -7 -7 -7 ------- Run | Jun Mat Min Exi Min Mat Gar Mat Fac Gar Fac Gar Combat Hostiles Destroyed 145 | . 5 10 . 3 6 17 14 21 33 30 6 Melee 9 | . . . . . . . . . 1 8 . Guns 91 | . 5 9 . 3 1 17 14 7 11 21 3 Cannons 25 | . . . . . 3 . . 14 8 . . AOE 16 | . . 1 . . . . . . 12 . 3 Classes Destroyed 16 | . 3 2 . 1 2 1 3 1 3 . . Worker 7 | . . . . 1 . . . 4 . 2 . Builder 6 | . . . . . . . 2 . . 4 . Tunneler 1 | . . 1 . . . . . . . . . Hauler 2 | . . . . . 1 . 1 . . . . Recycler 6 | . . 1 . . 1 . . 2 . 2 . Operator 4 | . 1 . . . 1 . 2 . . . . Watcher 7 | . . . . . . . 3 . . 4 . Swarmer 30 | . 3 2 . 3 . 4 . 3 13 2 . Saboteur 1 | . . . . . . . . . 1 . . Grunt 63 | . 2 8 . . 4 7 6 5 10 19 2 Brawler 1 | . . . . . . . . 1 . . . Duelist 8 | . . . . . . 1 1 1 1 1 3 Sentry 22 | . . . . . 2 5 6 1 3 4 1 Specialist 1 | . . . . . . . . . 1 . . Hunter 1 | . . . . . . . . . 1 . . Programmer 18 | . . . . . . . 1 10 3 4 . Best Kill Streak 10 | . 5 2 . 3 2 9 4 5 10 4 3 Combat Bots Only 10 | . 5 2 . 3 2 9 3 3 10 3 3 Max Kills in Single Turn 4 | . 1 1 . 1 1 1 2 2 4 2 2 Gunslinging 1 | . . . . . . . . . . 1 . Exploded 4 | . . 1 . . . . . . 4 . 2 Melee 1 | . . . . . . . . . 1 1 . Uniques/NPCs Destroyed . | . . . . . . . . . . . . Combat | -11 -10 -10 -10 -9 -8 -8 -8 -7 -7 -7 -7 -------- Run | Jun Mat Min Exi Min Mat Gar Mat Fac Gar Fac Gar Damage Taken 7593 | . 135 654 . 65 411 503 514 719 2139 1621 832 Core 1101 | . 21 119 . 23 42 63 125 26 367 193 122 Absorbed by Shields 104 | . . . . . . . . 20 . 84 . Ignored by Resistances 179 | . . . . . 2 50 46 22 59 . . Regen/Repaired (Parts) 802 | . . . . . . . 221 . . 581 . Core Remaining (%) 64 | 100 . . . 34 . . 58 . . . . Volleys Fired 613 | . 13 29 . 6 89 53 100 79 94 130 20 Largest 2 | . 2 2 . 2 2 2 2 2 2 2 2 Hottest 160 | . 60 105 . 105 85 50 85 96 160 66 88 Shots Fired 1018 | . 26 54 . 12 93 106 172 141 138 241 35 Gun 723 | . 26 54 . 12 4 106 130 56 73 232 30 Cannon 240 | . . . . . 89 . 42 67 42 . . Launcher 12 | . . . . . . . . . 8 . 4 Special 43 | . . . . . . . . 18 15 9 1 Kinetic 710 | . 13 26 . . 4 106 130 123 73 222 13 Thermal 206 | . . 21 . 12 89 . 42 . 42 . . Explosive 12 | . . . . . . . . . 8 . 4 Electromagnetic 47 | . 13 7 . . . . . . . 10 17 Robot Hit Streak 19 | . 4 8 . 9 10 17 9 15 13 19 13 Robot Miss Streak 7 | . 1 7 . 3 5 6 6 3 4 4 3 Penetration Max 1 | . . . . . . . . 1 1 1 1 Secondary Targets 8 | . . . . 2 . 4 . . 1 1 . Max Gunslinging Chain 1 | . . . . 1 . 1 . . 1 1 . Shots Hit Robots 636 | . 15 35 . 5 26 61 93 99 105 172 25 Core Hits 286 | . 8 20 . 3 10 29 38 37 61 64 16 Critical Kills 5 | . . . . . 2 . 1 . 1 1 . Critical Parts Destroyed 5 | . . . . . . . . . 2 3 . Critical Strikes 20 | . . 1 . . 2 . 1 5 4 7 . Burn 1 | . . 1 . . . . . . . . . Meltdown 2 | . . . . . 2 . . . . . . Destroy 9 | . . . . . . . 1 . 3 5 . Blast 6 | . . . . . . . . 5 1 . . Sever 2 | . . . . . . . . . . 2 . Melee Attacks 54 | . . . . . . . . . . 53 1 Impact . | . . . . . . . . . . . . Slashing 44 | . . . . . . . . . . 43 1 Piercing . | . . . . . . . . . . . . Sneak Attacks 11 | . . . . . . . . . . 11 . Combat Hostiles . | . . . . . . . . . . . . Follow-up Attacks . | . . . . . . . . . . . . Damage Inflicted 15003 | . 229 521 . 63 624 1069 1749 2327 3088 4264 1069 Guns 8993 | . 226 467 . 56 70 1069 1510 822 1284 3018 471 Cannons 3192 | . . . . . 554 . 239 1505 894 . . Explosions 1554 | . . 46 . . . . . . 910 . 598 Melee 1246 | . . . . . . . . . . 1246 . Ramming 18 | . 3 8 . 7 . . . . . . . Kinetic 9786 | . 105 166 . . 70 1069 1510 2327 1411 2811 317 Thermal 1905 | . . 289 . 56 554 . 239 . 767 . . Explosive 1508 | . . . . . . . . . 910 . 598 Electromagnetic 540 | . 121 58 . . . . . . . 207 154 Impact . | . . . . . . . . . . . . Slashing 1246 | . . . . . . . . . . 1246 . Piercing . | . . . . . . . . . . . . Highest Corruption 3 | . . . . . . . 1 3 2 3 3 Average Corruption 1 | . . . . . . . 1 1 1 2 3 Corruption Purged 8 | . . . . . . . . 4 . 4 . Corruption Blocked . | . . . . . . . . . . . . Effects 103 | . . . . . . . 36 14 17 31 5 Message Errors 22 | . . . . . . . 8 3 3 6 2 Matter Fused 23 | . . . . . . . 8 3 4 7 1 Heat Flow Errors 19 | . . . . . . . 11 1 2 5 . Energy Discharges 14 | . . . . . . . 4 2 1 6 1 Parts Rejected 2 | . . . . . . . . . . 1 1 Parts Fused 1 | . . . . . . . . . . 1 . Data Loss (minor) 15 | . . . . . . . 3 3 5 4 . Misfires 5 | . . . . . . . 1 2 2 . . Alerts 2 | . . . . . . . 1 . . 1 . Overload Shots . | . . . . . . . . . . . . Overflow Damage 175 | . . . . . . . . 25 9 128 13 Projectiles 25 | . . . . . . . . 25 . . . Explosions 22 | . . . . . . . . . 9 . 13 Melee 128 | . . . . . . . . . . 128 . Knockbacks 12 | . . . . . . . . 11 1 . . Impact . | . . . . . . . . . . . . Kinetic 11 | . . . . . . . . 10 1 . . Secondary 1 | . . . . . . . . 1 . . . Self-Inflicted Damage 198 | . . 30 . . . . . . . . 168 Shots 3 | . . 1 . . . . . . . . 2 Rammed 8 | . 1 5 . 1 1 . . . . . . Targets Rammed 10 | . 1 6 . 2 1 . . . . . . Kicked . | . . . . . . . . . . . . Crushed 2 | . . 1 . 1 . . . . . . . Highest Temperature 278 | . 36 200 . 18 94 85 252 201 278 248 66 Average Temperature 51 | . 25 66 . 9 22 23 62 31 101 47 25 Received Heat Transfer 2474 | . 36 369 . . 64 261 225 138 564 667 150 Effects 8 | . . . . . . . . 1 4 3 . Energy Bleed 2 | . . . . . . . . 1 1 . . Interference 6 | . . . . . . . . . 3 3 . Siege Activations . | . . . . . . . . . . . . Robots Corrupted 1 | . . . . . . . . . . 1 . Combat Hostiles 1 | . . . . . . . . . . 1 . Parts Fried 3 | . . . . . . . . . . 2 1 Impact Corruptions . | . . . . . . . . . . . . Robots Melted 3 | . . . . . 2 . . . 1 . . Combat Hostiles 3 | . . . . . 2 . . . 1 . . Parts Melted 15 | . . 1 . 1 8 . . . 5 . . Heat Transferred 3687 | . . 704 . 125 888 . 370 . 1600 . . Parts Sabotaged 3 | . . . . . . . . . 3 . . Parts Stolen . | . . . . . . . . . . . . Parts Stripped . | . . . . . . . . . . . . Power Chain Reactions 1 | . . 1 . . . . . . . . . Missiles Intercepted . | . . . . . . . . . . . . Alert | -11 -10 -10 -10 -9 -8 -8 -8 -7 -7 -7 -7 ------- Run | Jun Mat Min Exi Min Mat Gar Mat Fac Gar Fac Gar Peak Influence 1043 | . 170 181 . 70 738 1007 490 407 1043 516 475 Initial 501 | . . 66 . . 27 462 490 9 39 501 235 Average 211 | . 110 94 . 6 345 823 63 107 627 220 267 Maximum Alert Level 3 | . . . . . 3 3 2 2 3 2 2 Low Security (%) 61 | 100 100 100 . 100 22 . 90 71 28 44 . Level 1 24 | . . . . . 52 . 9 27 6 46 99 Level 2 6 | . . . . . 18 19 . . 13 9 . Level 3 8 | . . . . . 5 80 . . 51 . . Level 4 . | . . . . . . . . . . . . Level 5 . | . . . . . . . . . . . . High Security . | . . . . . . . . . . . . Max Security . | . . . . . . . . . . . . Squads Dispatched 47 | . 2 . . . 11 . 4 17 . 13 . Investigation 13 | . 1 . . . 2 . 2 1 . 7 . Extermination 13 | . . . . . . . . 9 . 4 . Reinforcement 10 | . 1 . . . 5 . 1 1 . 2 . Assault 1 | . . . . . 1 . . . . . . Garrison 10 | . . . . . 3 . 1 6 . . . Intercept . | . . . . . . . . . . . . Searches Triggered . | . . . . . . . . . . . . Construction Impeded 1 | . . . . . 1 . . . . . . Haulers Reinforced 1 | . . . . . . . . . . 1 . Active Scanning Responses . | . . . . . . . . . . . . Cargo Convoy Interrupts . | . . . . . . . . . . . . Stealth | -11 -10 -10 -10 -9 -8 -8 -8 -7 -7 -7 -7 --------- Run | Jun Mat Min Exi Min Mat Gar Mat Fac Gar Fac Gar Distress Signals 9 | . . . . . 5 . 1 1 . 2 . Communications Jammed . | . . . . . . . . . . . . Distress Signals . | . . . . . . . . . . . . Times Spotted 248 | . 8 14 . 3 60 18 25 24 44 42 10 Peak Tracking Total 6 | . 6 4 . 3 4 4 4 3 6 4 4 Tactical Retreats 8 | . . 3 . . 1 . . 1 2 1 . Traps | -11 -10 -10 -10 -9 -8 -8 -8 -7 -7 -7 -7 ------- Run | Jun Mat Min Exi Min Mat Gar Mat Fac Gar Fac Gar Traps Triggered 24 | . 2 . . . . 9 . 3 4 6 . Indirectly . | . . . . . . . . . . . . Trap Hack Attempts 5 | . . . . . . . . . . 5 . Triggered . | . . . . . . . . . . . . Disarmed 6 | . . . . . . . 6 . . . . Reprogrammed 1 | . . . . . . . . . . 1 . Reused . | . . . . . . . . . . . . Traps Extracted . | . . . . . . . . . . . . Installed . | . . . . . . . . . . . . Triggered . | . . . . . . . . . . . . Machines | -11 -10 -10 -10 -9 -8 -8 -8 -7 -7 -7 -7 ---------- Run | Jun Mat Min Exi Min Mat Gar Mat Fac Gar Fac Gar Machines Disabled 19 | . . 1 . . 4 . 1 7 2 2 2 Max in Single Turn 6 | . . 1 . . 1 . 1 6 1 1 2 Phase Generator 2 | . . . . . . . . . 1 . 1 Machines Repaired 1 | . . . . . . . . . 1 . . Machines Sabotaged . | . . . . . . . . . . . . Overloaded Fab Kills . | . . . . . . . . . . . . Hacking | -11 -10 -10 -10 -9 -8 -8 -8 -7 -7 -7 -7 --------- Run | Jun Mat Min Exi Min Mat Gar Mat Fac Gar Fac Gar Machines Accessed 59 | . 3 . 2 1 13 4 11 5 3 17 . Terminals 39 | . 3 . . . 10 4 8 2 3 9 . Fabricators 3 | . . . . . . . . . . 3 . Repair Stations 6 | . . . . . 1 . 1 2 . 2 . Recycling Units 4 | . . . . . 1 . 1 . . 2 . Scanalyzers . | . . . . . . . . . . . . Garrison Access 4 | . . . . . 1 . 1 1 . 1 . Total Hacks 186 | . 7 . 2 1 37 13 51 23 6 46 . Successful 98 | . 1 . 2 1 19 1 37 12 3 22 . Failed 87 | . 5 . . . 18 12 14 11 3 24 . Catastrophic 23 | . 3 . . . 5 5 2 2 2 4 . Database Lockouts 1 | . 1 . . . . . . . . . . Manual 144 | . 7 . 1 . 32 10 41 22 3 28 . Terminals 123 | . 7 . . . 27 13 34 10 6 26 . Fabricators 8 | . . . . . . . . . . 8 . Repair Stations 18 | . . . . . 1 . 6 5 . 6 . Recycling Units 12 | . . . . . 4 . 4 . . 4 . Scanalyzers . | . . . . . . . . . . . . Garrison Access 22 | . . . . . 5 . 7 8 . 2 . Terminal Hacks 34 | . 1 . 2 1 8 1 11 2 2 6 . Record 1 | . . . 1 . . . . . . . . Part Schematic 4 | . . . . . 1 . 3 . . . . Robot Schematic 4 | . 1 . . . 1 . . . . 2 . Open Door 2 | . . . . 1 . . . . 1 . . Emergency Access Points 1 | . . . . . . . . . 1 . . Terminal Index 4 | . . . . . 1 . 1 1 . 1 . Fabricator Index 1 | . . . . . . . . 1 . . . Garrison Index 2 | . . . . . . . 1 . . 1 . Alert Level 1 | . . . . . 1 . . . . . . Unreport Threat 6 | . . . . . 2 . 3 . . 1 . Locate Traps 2 | . . . . . . . 2 . . . . Disarm Traps 1 | . . . . . . . 1 . . . . Investigation Status 1 | . . . . . 1 . . . . . . Recall Investigation 1 | . . . . . . . . . . 1 . Zone Layout 1 | . . . . . 1 . . . . . . Garrison Registry 1 | . . . . . . 1 . . . . . Derelict Proto ID Bank 1 | . . . 1 . . . . . . . . Fabricator Hacks 4 | . . . . . . . . . . 4 . Load Schematic 3 | . . . . . . . . . . 3 . Build 1 | . . . . . . . . . . 1 . Repair Station Hacks 7 | . . . . . . . 4 . . 3 . Scan Component 4 | . . . . . . . 2 . . 2 . Repair 3 | . . . . . . . 2 . . 1 . Recycling Unit Hacks . | . . . . . . . . . . . . Scanalyzer . | . . . . . . . . . . . . Garrison Access Hacks 3 | . . . . . 1 . . 1 . 1 . Unlock Access 3 | . . . . . 1 . . 1 . 1 . Unauthorized Hacks 50 | . . . . . 10 . 22 9 1 8 . Terminals 22 | . . . . . 4 . 10 3 1 4 . Track 4 | . . . . . . . 4 . . . . Assimilate 3 | . . . . . . . 1 2 . . . Botnet 9 | . . . . . 4 . 2 . . 3 . Disrupt 2 | . . . . . . . 2 . . . . Operators 3 | . . . . . . . 1 1 . 1 . Sabotage 1 | . . . . . . . . . 1 . . Fabricators 1 | . . . . . . . . . . 1 . Haulers 1 | . . . . . . . . . . 1 . Repair Stations 5 | . . . . . 1 . 1 2 . 1 . Mechanics 5 | . . . . . 1 . 1 2 . 1 . Recycling Units 8 | . . . . . 3 . 4 . . 1 . Monitor 1 | . . . . . . . 1 . . . . Reject 2 | . . . . . 1 . 1 . . . . Recyclers 2 | . . . . . 1 . 1 . . . . Mask 3 | . . . . . 1 . 1 . . 1 . Scanalyzers . | . . . . . . . . . . . . Garrison Access 14 | . . . . . 2 . 7 4 . 1 . Broadcast 2 | . . . . . . . 1 1 . . . Decoy 1 | . . . . . . . 1 . . . . Redirect 1 | . . . . . . . 1 . . . . Reprogram 1 | . . . . . . . 1 . . . . Intercept 3 | . . . . . 1 . 1 1 . . . Watchers 2 | . . . . . . . 1 1 . . . Eject 4 | . . . . . 1 . 1 1 . 1 . Data Cores Recovered 3 | . 1 . . . 1 . 1 . . . . Used 2 | . 1 . . . . . 1 . . . . Hacking Detections 47 | . 3 . . . 11 4 8 5 2 14 . Full Trace Events 10 | . 1 . . . 1 3 . . . 5 . Feedback Events . | . . . . . . . . . . . . Feedback Blocked . | . . . . . . . . . . . . Robot Schematics Acquired 4 | . 1 . . . 1 . . . . 2 . Robots Built 1 | . . . . . . . . . . 1 . Authchips . | . . . . . . . . . . . . Time 58 | . . . . . . . . . . 58 . Total Robot Build Rating 3 | . . . . . . . . . . 3 . Part Schematics Acquired 4 | . . . . . 1 . 3 . . . . Parts Built . | . . . . . . . . . . . . Authchips . | . . . . . . . . . . . . Time . | . . . . . . . . . . . . Total Part Build Rating . | . . . . . . . . . . . . Parts Repaired 3 | . . . . . . . 2 . . 1 . Time 172 | . . . . . . . 104 . . 68 . Parts Recycled . | . . . . . . . . . . . . Recycled Matter . | . . . . . . . . . . . . Retrieved Matter . | . . . . . . . . . . . . Retrieved Components . | . . . . . . . . . . . . Parts Scanalyzed . | . . . . . . . . . . . . Part Schematics Acquired . | . . . . . . . . . . . . Parts Damaged . | . . . . . . . . . . . . Bothacking | -11 -10 -10 -10 -9 -8 -8 -8 -7 -7 -7 -7 ------------ Run | Jun Mat Min Exi Min Mat Gar Mat Fac Gar Fac Gar Used RIF Installer 2 | . . . . . . 1 . . 1 . . Patrol Navigation 1 | . . . . . . . . . 1 . . Robots Hacked 27 | . . . . . . . . 11 9 6 1 Non-combat 11 | . . . . . . . . 7 . 4 . Combat 16 | . . . . . . . . 4 9 2 1 Robot Hacks Applied 36 | . . . . . . . . 12 9 14 1 parse_system 1 | . . . . . . . . . . 1 . no_distress 1 | . . . . . . . . . . 1 . find_chute 1 | . . . . . . . . 1 . . . ignore_repairs 1 | . . . . . . . . 1 . . . find_recycling 1 | . . . . . . . . 1 . . . purge_threat 7 | . . . . . . . . 2 . 5 . block_reporting 1 | . . . . . . . . . . 1 . recall_investigation 1 | . . . . . . . . . . 1 . spike_heat 1 | . . . . . . . . 1 . . . overload_power 1 | . . . . . . . . . 1 . . reboot_system 2 | . . . . . . . . . . 2 . overwrite_iff 2 | . . . . . . . . . 2 . . streamctrl_high 2 | . . . . . . . . 2 . . . formatsys_low 6 | . . . . . . . . 3 . 3 . formatsys_high 8 | . . . . . . . . 1 6 . 1 Relay Couplers Released 23 | . . . . . 3 . 7 10 . 3 . Ejected 14 | . . . . . 3 . 4 4 . 3 . Programmers 9 | . . . . . . . 3 6 . . . Attached 12 | . . . . . . . . 5 4 2 1 Fabnet Peak Effective % . | . . . . . . . . . . . . Robots Rewired . | . . . . . . . . . . . . Allies Hacked . | . . . . . . . . . . . . Hacks Repelled . | . . . . . . . . . . . . Allies | -11 -10 -10 -10 -9 -8 -8 -8 -7 -7 -7 -7 -------- Run | Jun Mat Min Exi Min Mat Gar Mat Fac Gar Fac Gar Total Allies 24 | . . . . . . . 1 8 10 4 1 Largest Group 4 | . . . . . . . 1 3 4 3 3 Highest-Rated Group 83 | . . . . . . . 15 33 83 62 81 Highest-Rated Ally 39 | . . . . . . . 15 32 39 27 32 Total Orders 109 | . . . . . 63 . . 34 5 7 . STAY 27 | . . . . . . . . 23 3 1 . FOLLOW 15 | . . . . . 2 . . 8 1 4 . AID 2 | . . . . . . . . . . 2 . DROP 2 | . . . . . . . . 1 1 . . PICKUP 2 | . . . . . . . . 2 . . . RETURN 61 | . . . . . 61 . . . . . . Ally Attacks 339 | . . . . . 272 . 2 12 45 . 8 Total Damage 5661 | . . . . . 4309 . 54 234 772 . 292 Kills 54 | . . . . . 45 . . 2 7 . . Allies Corrupted 1 | . . . . . 1 . . . . . . Allies Melted . | . . . . . . . . . . . . Intel | -11 -10 -10 -10 -9 -8 -8 -8 -7 -7 -7 -7 ------- Run | Jun Mat Min Exi Min Mat Gar Mat Fac Gar Fac Gar Robot Analysis Total . | . . . . . . . . . . . . Derelict Logs Recovered 2 | . . 1 . 1 . . . . . . . Drone Launches 91 | . . . . . 91 . . . . . . Drone Recoveries 86 | . . . . . 86 . . . . . . Exploration | -11 -10 -10 -10 -9 -8 -8 -8 -7 -7 -7 -7 ------------- Run | Jun Mat Min Exi Min Mat Gar Mat Fac Gar Fac Gar Turns Passed 23682 | 64 264 1016 339 453 3206 963 6574 5555 1765 3232 251 Spaces Moved 10606 | 59 164 544 212 247 1775 623 1259 2574 1102 1894 153 Core 13 | 12 . . . . . . . . 1 . . Treads 1315 | . 79 544 212 239 . . . . 241 . . Legs 2791 | . . . . . . . . . 744 1894 153 Wheels 6487 | 47 85 . . 8 1775 623 1259 2574 116 . . Hover . | . . . . . . . . . . . . Flight . | . . . . . . . . . . . . Fastest Speed 50 | 50 100 160 160 100 115 115 115 100 100 115 120 Average Speed 121 | 89 128 160 160 159 138 115 115 100 125 118 120 Slowest Speed 240 | 100 160 160 160 240 145 115 115 115 240 125 120 Overloaded Moves . | . . . . . . . . . . . . Propulsion Burnouts . | . . . . . . . . . . . . Robots Hopped 2 | . . . . . . . . . 2 . . Cave-ins Triggered . | . . . . . . . . . . . . Exploration Rate (%) 52 | 4 32 100 61 63 97 54 50 16 94 34 19 Regions Visited 11 Branch Regions 3 Pre-discovered Areas 2 | . . . 1 1 . . . . . . . Known Exits Taken 3 | . . . . . 1 . . 1 . 1 . Unknown Exits Taken 6 | 1 1 1 1 1 . . 1 . . . . Scrap Searched 2 | . . 1 . 1 . . . . . . . Spaces Dug 39 | . . . . . 13 . 7 1 1 17 . Terrain Destroyed 337 | . . 5 . . 31 . 12 47 55 44 143 Melee 6 | . . . . . . . . . . 6 . Projectile 100 | . . . . . 31 . 12 17 3 37 . AOE 230 | . . 5 . . . . . 30 52 . 143 Terrain Rammed . | . . . . . . . . . . . . Walls Destroyed . | . . . . . . . . . . . . Machines Disabled . | . . . . . . . . . . . . Actions | -11 -10 -10 -10 -9 -8 -8 -8 -7 -7 -7 -7 --------- Run | Jun Mat Min Exi Min Mat Gar Mat Fac Gar Fac Gar Total 20405 | 67 187 632 212 294 2444 806 6263 5405 1346 2568 181 Wait 8686 | . 2 40 . 34 522 50 4874 2660 76 428 . Move 10591 | 58 163 543 211 246 1774 622 1258 2573 1097 1893 153 Hop 2 | . . . . . . . . . 2 . . Pick Up 91 | 3 1 7 1 2 12 2 11 20 25 7 . Fast Attach 69 | 6 5 1 . . 13 1 2 5 17 17 2 Attach 29 | . . 3 . 1 8 3 . 4 5 5 . Detach 5 | . . . . . 1 . . 1 . 3 . Swap 80 | . 2 1 . 1 1 1 10 31 13 15 5 Drop 80 | . . 2 . 2 23 2 8 17 16 10 . Fire 613 | . 13 29 . 6 89 53 100 79 94 130 20 Melee 54 | . . . . . . . . . . 53 1 Ram 1 | . . . . . 1 . . . . . . Kick . | . . . . . . . . . . . . Crush 9 | . 1 6 . 2 . . . . . . . Escape Stasis 87 | . . . . . . 72 . 15 . . . Rewire 3 | . . . . . . . . . 1 2 . Trap 5 | . . . . . . . . . . 5 . Miscellaneous . | . . . . . . . . . . . . Route ------- -11/Junkyard -10/Materials -10/Mines (discovered 4 exits: [*Mat x2] / *Exi / [*Sub]) -10/Exiles -9/Mines -8/Materials (discovered 4 exits: *Fac x3 / Gar) -8/Garrison (discovered 3 exits: *Mat x3) -8/Materials -7/Factory -7/Garrison (discovered 3 exits: *Fac x3) -7/Factory (discovered 2 exits: [*Fac] / Gar) -7/Garrison History --------- Turn | Location | Event 48 | -11/Junkyard | Discovered new exit (range 16) 65 | -11/Junkyard | Entered Materials 121 | -10/Materials | Discovered new exit (range 11) 254 | -10/Materials | Central database locked down 304 | -10/Materials | Build established: Mutant 329 | -10/Materials | Entered Mines 736 | -10/Mines | Discovered new exit (range 10) 1102 | -10/Mines | Discovered new exit (range 14) 1174 | -10/Mines | Discovered new exit (range 6) 1263 | -10/Mines | Learned Materials terminal intel 1296 | -10/Mines | Core integrity fell below 50% 1337 | -10/Mines | Deemed a non-threat by the Exiles lab entrance 1337 | -10/Mines | Discovered new exit (range 5) 1345 | -10/Mines | Entered Exiles 1385 | -10/Exiles | Met 8R-AWN 1413 | -10/Exiles | Met EX-HEX 1456 | -10/Exiles | Met EX-BIN 1475 | -10/Exiles | Aligned with FarCom system 1477 | -10/Exiles | Given EX-Vault access code 1518 | -10/Exiles | Opened EX-Vault 1533 | -10/Exiles | Found Army-in-a-Box 1566 | -10/Exiles | Warned to stay clear of 0b10 Research branches 1584 | -10/Exiles | Exiles lab attacked by MAIN.C 1608 | -10/Exiles | Build established: Scavenger-Mutant 1623 | -10/Exiles | Learned location of Zion (-6) 1670 | -10/Exiles | Discovered new exit (range 11) 1684 | -10/Exiles | Left Exiles lab with Army-in-a-Box 1684 | -10/Exiles | Entered Mines 1747 | -9/Mines | Received a Rocket Launcher from a helpful Derelict 2012 | -9/Mines | Found the Drone Emporium 2041 | -9/Mines | Found Prototype Device 2088 | -9/Mines | Discovered new exit (range 10) 2137 | -9/Mines | Entered Materials 2137 | -8/Materials | Evolved 4 slots: Utility x4 2138 | -8/Materials | Loaded intel: 12 terminal locations 2138 | -8/Materials | Identified Decoy Drone Bay 2361 | -8/Materials | Discovered new exit (range 13) 2746 | -8/Materials | Build established: Mutant 4154 | -8/Materials | Discovered new exit (range 13) 4613 | -8/Materials | Discovered new exit (range 3) 4752 | -8/Materials | Garrison activated, responded to threat 5306 | -8/Materials | Identified exit to Garrison 5337 | -8/Materials | First assault squad dispatched 5343 | -8/Materials | Entered Garrison 5416 | -8/Garrison | Triggered checkpoint 5554 | -8/Garrison | Destroyed 9 combat bots 5584 | -8/Garrison | Discovered new exit (range 12) 5598 | -8/Garrison | Build established: Hacker-Mutant 5662 | -8/Garrison | Triggered checkpoint 5806 | -8/Garrison | Triggered checkpoint 5905 | -8/Garrison | Discovered new exit (range 12) 5928 | -8/Garrison | Triggered checkpoint 6136 | -8/Garrison | Triggered checkpoint 6156 | -8/Garrison | Discovered new exit (range 52) 6156 | -8/Garrison | Discovered new exit (range 27) 6156 | -8/Garrison | Discovered new exit (range 31) 6221 | -8/Garrison | Installed Relay Interface Framework 6306 | -8/Garrison | Entered Materials 6634 | -8/Materials | Repaired Arm. Huge Wheel 6696 | -8/Materials | Repaired Enh. Autogun 6814 | -8/Materials | Discovered new exit (range 7) 7737 | -8/Materials | Garrison activated, responded to threat 12880 | -8/Materials | Entered Factory 12880 | -7/Factory | Evolved 2 slots: Propulsion x2 13886 | -7/Factory | Identified exit to Garrison 14039 | -7/Factory | Garrison activated, responded to threat 14352 | -7/Factory | Garrison activated, responded to threat 18435 | -7/Factory | Entered Garrison 18435 | -7/Garrison | Accompanied by 2 allies 18704 | -7/Garrison | Lost 9 parts (1p2n3u3w) 18732 | -7/Garrison | Rescued a captive Derelict 18742 | -7/Garrison | Rescued a captive Derelict 18829 | -7/Garrison | Build established: Bothacker-Mutant 18936 | -7/Garrison | Triggered checkpoint 19219 | -7/Garrison | Triggered checkpoint 19234 | -7/Garrison | Triggered checkpoint 19238 | -7/Garrison | Build established: Scavenger-Mutant 19269 | -7/Garrison | Destroyed 10 combat bots 19307 | -7/Garrison | Phase Generator disabled 19334 | -7/Garrison | Triggered checkpoint 19372 | -7/Garrison | Discovered new exit (range 14) 19553 | -7/Garrison | Triggered checkpoint 19635 | -7/Garrison | Discovered new exit (range 8) 19657 | -7/Garrison | Core integrity fell below 50% 19772 | -7/Garrison | Triggered checkpoint 19808 | -7/Garrison | Build established: Bothacker-Mutant 19904 | -7/Garrison | Triggered checkpoint 19987 | -7/Garrison | Discovered new exit (range 11) 20047 | -7/Garrison | Expanded RIF knowledge: Patrol Navigation 20053 | -7/Garrison | Triggered checkpoint 20200 | -7/Garrison | Entered Factory 20217 | -7/Factory | Build established: Hacker-Mutant 22246 | -7/Factory | Build established: Mutant 22487 | -7/Factory | Repaired Biometal Leg 22793 | -7/Factory | Fabricated M-28 Smith? 22977 | -7/Factory | Core integrity fell below 20% 23163 | -7/Factory | Discovered new exit (range 15) 23415 | -7/Factory | Identified exit to Garrison 23432 | -7/Factory | Entered Garrison 23432 | -7/Garrison | Accompanied by 2 allies 23494 | -7/Garrison | Triggered checkpoint 23661 | -7/Garrison | Spotted B-75 Beast 23661 | -7/Garrison | Spotted B-75 Beast 23682 | -7/Garrison | Phase Generator disabled 23683 | -7/Garrison | Destroyed by B-75 Beast with Magnetic Acceleration Cannon Last Messages --------------- 23510_ Slug penetrates L-41 Fighter. 23522_ Imp. Melee Analysis Suite fried. 23522_ L-41 Fighter destroyed. 23525_ Acquired Biometal Leg. 23527_ Acquired 65 matter. 23528_ Acquired 32 matter. 23530_ Acquired Imp. Light Armor Plating. 23536_ Acquired 10 matter. 23543_ A,>14PL4LA%P8MVQXCWXSMD1 23668_ B-75 Beast springs to life. 23669_ The unstable cave ceiling collapses. 23674_ Destroyed Microactuators. 23680_ Imp. Light Armor Plating destroyed. 23682_ Phase Generator explodes. 23682_ The unstable cave ceiling collapses. 23682_ Machine disabled. 23682_ L-41 Fighter destroyed. Map ----- +----------------------------------------------------+ | ??????????????????# ???????? #??????????????## | | ?????????????????? ???????? #??????????????#" | | ?????????????????? ???????? #?"""##### ###### | | ?????????????????? ???????? % | | ?????????????????? % ???????? | | ?????????????????? !% ???????? ################# | | ?????????????????? ???????# #???????????????? | | ?????????????????? #???????# #???????????????? | | ???????????????#### ???????# #???????????????? | | ???????????????#!! ##??????# ################# | | ??????????????## [#??????# % | | ??????????????# [#??????# g | | ??????????????# [#??????# ## ##### ###### | | ??????????????? #???g??# #????????# #???#" | | ??????????????## |#??????# #?###????# ##??## | | ??????????????# BBBB | ??????# #?# #????# !#???? | | ???????????????#BBBBg| ??????# #?# #????# !#???? | | ???????????????? % ??????# #?# ###### !#???? | | ???????????????### ###???# #?# ###???? | | ??????????????## ##??# #?# #######?????? | | ?????????????## ##?# #?# #???????????? | | ?????????????# #?# #?# #???????????? | | ?????????????# ### #?# #???????????? | | ?????????????# ## #?# #???????????? | | ?????????????# #?# ### #???????????? | | ?????????????# @%### # #???????????? | | ?????????????# + " #???????????? | | ?????????????# ### ###???????????? | | ?????????????# #?#######?????????????? | | ?????????????## #?????????????????????? | | ??????????????# #?????????????????????? | | ??????????????## ###?????????????????????? | | ???????????????#####"####????????????????????????? | | ???????????????????###???????????????????????????? | | ?????????????????????????????????????????????????? | | ?????????????????????????????????????????????????? | | ?????????????????????????????????????????????????? | | ?????????????????????????????????????????????????? | | ?????????????????????????????????????????????????? | | | | | | | | | | | | | | | | | | | | | | | +----------------------------------------------------+ Best States ------------- Heat Dissipation 48 Energy Generation 16 Energy Capacity 290 Matter Stores 300 Matter Capacity 300 Sight Range 20 Terrain Scan Density 10 Jamming Range 16 Armor Coverage 750 Resistance: TH 10 Melee Speed Boost 20 Evasion (%) 55 Targeting Accuracy 8 Recoil Reduction 2 Offensive Hacking 20 Defensive Hacking 20 Relay Coupler Types 2 Relay Coupler Value 64 Item Schematics ----------------- Hacking Suite | -8/Materials | Hacked System Shield | -8/Materials | Hacked Adv. Targeting Computer | -8/Materials | Hacked Insulated Plating | -8/Materials | Hacked Robot Schematics ------------------ M-13 Machinist | -10/Materials | Hacked M-28 Smith | -8/Materials | Hacked Y-54 Guardian | -7/Factory | Hacked P-60 Hacker | -7/Factory | Hacked Fabricated ------------ M-28 Smith | x1 | -7/Factory Alien Tech Used ----------------- None Achievements -------------- None Challenges ------------ None Game ------ Seed WeaponsFlyingWarhead Manual? 0 Play Time 03:04:49 Cumulative 379.5 hours Start 2023.09.26 @ 14:57:21 End 2023.09.27 @ 13:27:18 Sessions 3 Manual Loads 0 Difficulty Rogue Special Mode None Game No. 239 Rogue 236 Adventurer 3 Explorer 0 Win Type - Total 7 Types 6/0/1/0/0/0/0/0/0 Lore% 69 Gallery% 76 Achievement% 66 Wizard Run 0 Options --------- ASCII 0 Keyboard 0 Movement Numpad Keybinds 0 Fullscreen 1 Font 18/SmallcapsGlow Map View 76x50 Tactical HUD 1 Map Filters NONE Filters NONE Steam 1 RUN: 1a81981e-540f-40b3-b3bc-4d322cc48352